[Event "Late-Titled-Tuesday-Blitz-November-28-2023"]
[Site "Chess.com"]
[Date "2023.11.28"]
[Round "6"]
[White "wanyaland"]
[Black "TheMagician"]
[Result "1-0"]
[WhiteElo "2444"]
[BlackElo "2296"]
[TimeControl "180+1"]
[EndTime "15:01:37 PST"]
[Termination "wanyaland won by resignation"]

1. d4 {[%clk 0:02:54.2]} 1... Nf6 {[%clk 0:02:59.2]} 2. c4 {[%clk 0:02:53.8]}
2... e6 {[%clk 0:02:58]} 3. g3 {[%clk 0:02:53.9]} 3... b6 {[%clk 0:02:58.3]} 4.
Bg2 {[%clk 0:02:54.1]} 4... d5 {[%clk 0:02:58.3]} 5. Nc3 {[%clk 0:02:52.3]} 5...
c6 {[%clk 0:02:52.8]} 6. Nf3 {[%clk 0:02:48]} 6... dxc4 {[%clk 0:02:47.4]} 7.
Ne5 {[%clk 0:02:46.7]} 7... Nd5 {[%clk 0:02:45.4]} 8. Nxc4 {[%clk 0:02:46.1]}
8... Ba6 {[%clk 0:02:36.5]} 9. Ne5 {[%clk 0:02:44]} 9... Qc7 {[%clk 0:02:26.9]}
10. O-O {[%clk 0:02:40.2]} 10... Bd6 {[%clk 0:02:22]} 11. f4 {[%clk 0:02:34.8]}
11... Nxc3 {[%clk 0:02:16.6]} 12. bxc3 {[%clk 0:02:33.7]} 12... O-O {[%clk
0:02:10.2]} 13. Re1 {[%clk 0:02:31]} 13... Bb7 {[%clk 0:02:06.1]} 14. e4 {[%clk
0:02:27.7]} 14... Rd8 {[%clk 0:02:03.7]} 15. Qe2 {[%clk 0:02:19.7]} 15... c5
{[%clk 0:01:46.5]} 16. Be3 {[%clk 0:02:17.3]} 16... Nc6 {[%clk 0:01:43.2]} 17.
Rac1 {[%clk 0:02:15.3]} 17... Nxe5 {[%clk 0:01:39.4]} 18. fxe5 {[%clk
0:02:13.2]} 18... Be7 {[%clk 0:01:39.3]} 19. Rf1 {[%clk 0:02:08.5]} 19... Rf8
{[%clk 0:01:37.2]} 20. Qg4 {[%clk 0:02:05.4]} 20... Kh8 {[%clk 0:01:33.8]} 21.
h4 {[%clk 0:02:04.3]} 21... Rae8 {[%clk 0:01:11.7]} 22. h5 {[%clk 0:02:02.3]}
22... h6 {[%clk 0:01:08.4]} 23. Rf2 {[%clk 0:02:00.1]} 23... Kg8 {[%clk
0:01:07.9]} 24. Bxh6 {[%clk 0:01:58.1]} 1-0

[Event "Late-Titled-Tuesday-Blitz-November-28-2023"]
[Site "Chess.com"]
[Date "2023.11.28"]
[Round "6"]
[White "TanitoluwaAps116"]
[Black "rdarruda"]
[Result "1-0"]
[WhiteElo "2697"]
[BlackElo "2517"]
[TimeControl "180+1"]
[EndTime "15:02:07 PST"]
[Termination "TanitoluwaAps116 won by resignation"]

1. e4 {[%clk 0:03:00.9]} 1... c5 {[%clk 0:01:37.2]} 2. Nf3 {[%clk 0:03:00.5]}
2... Nc6 {[%clk 0:01:37.2]} 3. Bb5 {[%clk 0:02:57.6]} 3... g6 {[%clk 0:01:36.1]}
4. Bxc6 {[%clk 0:02:56.8]} 4... bxc6 {[%clk 0:01:37]} 5. O-O {[%clk 0:02:56.8]}
5... Bg7 {[%clk 0:01:37]} 6. Re1 {[%clk 0:02:50.9]} 6... e5 {[%clk 0:01:36.8]}
7. c3 {[%clk 0:02:46.9]} 7... Qb6 {[%clk 0:01:34.8]} 8. d4 {[%clk 0:02:38]} 8...
cxd4 {[%clk 0:01:33.8]} 9. cxd4 {[%clk 0:02:38.9]} 9... exd4 {[%clk 0:01:33.6]}
10. Nbd2 {[%clk 0:02:31.8]} 10... Ne7 {[%clk 0:01:31.5]} 11. Nc4 {[%clk
0:02:31.5]} 11... Qc7 {[%clk 0:01:29.7]} 12. Bg5 {[%clk 0:02:19]} 12... c5
{[%clk 0:01:12.9]} 13. e5 {[%clk 0:02:09]} 13... h6 {[%clk 0:00:35.2]} 14. Nd6+
{[%clk 0:02:05.8]} 14... Kf8 {[%clk 0:00:35.6]} 15. Qb3 {[%clk 0:01:50.9]} 15...
c4 {[%clk 0:00:35.7]} 16. Nxc4 {[%clk 0:01:44.1]} 16... hxg5 {[%clk 0:00:33.6]}
17. Nd6 {[%clk 0:01:42.8]} 1-0

[Event "Late-Titled-Tuesday-Blitz-November-28-2023"]
[Site "Chess.com"]
[Date "2023.11.28"]
[Round "6"]
[White "NikolaGry"]
[Black "Thormento16"]
[Result "1-0"]
[WhiteElo "2715"]
[BlackElo "2405"]
[TimeControl "180+1"]
[EndTime "15:02:15 PST"]
[Termination "NikolaGry won by checkmate"]

1. d4 {[%clk 0:03:00.9]} 1... Nf6 {[%clk 0:02:59.4]} 2. Bg5 {[%clk 0:03:00.1]}
2... d5 {[%clk 0:02:59.1]} 3. Nd2 {[%clk 0:02:59]} 3... c5 {[%clk 0:02:49.3]} 4.
Bxf6 {[%clk 0:02:56.2]} 4... gxf6 {[%clk 0:02:46.8]} 5. dxc5 {[%clk 0:02:35.5]}
5... e5 {[%clk 0:02:45.4]} 6. e4 {[%clk 0:02:35.3]} 6... Bxc5 {[%clk 0:02:39.5]}
7. Bb5+ {[%clk 0:02:34.9]} 7... Nc6 {[%clk 0:02:37.3]} 8. Qe2 {[%clk 0:02:20.9]}
8... Be6 {[%clk 0:02:26.7]} 9. O-O-O {[%clk 0:02:13.5]} 9... Qa5 {[%clk
0:02:24.9]} 10. Nb3 {[%clk 0:01:45.7]} 10... Qxa2 {[%clk 0:02:18.9]} 11. exd5
{[%clk 0:01:42.3]} 11... O-O-O {[%clk 0:02:17]} 12. Bxc6 {[%clk 0:00:59.9]}
12... bxc6 {[%clk 0:02:14.1]} 13. dxe6 {[%clk 0:00:51.3]} 13... fxe6 {[%clk
0:02:12.1]} 14. Nf3 {[%clk 0:00:44]} 14... Kb8 {[%clk 0:02:02.2]} 15. Rxd8+
{[%clk 0:00:34.6]} 15... Rxd8 {[%clk 0:02:03.1]} 16. Rd1 {[%clk 0:00:33.9]}
16... Rxd1+ {[%clk 0:02:02.8]} 17. Qxd1 {[%clk 0:00:33.8]} 17... Bb6 {[%clk
0:01:59.6]} 18. Qd6+ {[%clk 0:00:31.4]} 18... Bc7 {[%clk 0:01:58.9]} 19. Qxc6
{[%clk 0:00:27.5]} 19... a5 {[%clk 0:01:59.4]} 20. Nc5 {[%clk 0:00:21.5]} 20...
Qa1+ {[%clk 0:01:58.5]} 21. Kd2 {[%clk 0:00:20.7]} 21... Kc8 {[%clk 0:01:57.8]}
22. Qe8+ {[%clk 0:00:16.2]} 22... Bd8 {[%clk 0:01:57.3]} 23. Qd7+ {[%clk
0:00:16.1]} 23... Kb8 {[%clk 0:01:57.5]} 24. Qb7# {[%clk 0:00:15.8]} 1-0

[Event "Late-Titled-Tuesday-Blitz-November-28-2023"]
[Site "Chess.com"]
[Date "2023.11.28"]
[Round "6"]
[White "Tomytoteph"]
[Black "kleber2007"]
[Result "1-0"]
[WhiteElo "2606"]
[BlackElo "2388"]
[TimeControl "180+1"]
[EndTime "15:02:15 PST"]
[Termination "Tomytoteph won by resignation"]

1. e4 {[%clk 0:03:00.9]} 1... c6 {[%clk 0:02:59.8]} 2. d4 {[%clk 0:03:00.3]}
2... d5 {[%clk 0:03:00.4]} 3. Nd2 {[%clk 0:03:00.2]} 3... dxe4 {[%clk
0:03:00.1]} 4. Nxe4 {[%clk 0:03:00.4]} 4... Bf5 {[%clk 0:03:00.7]} 5. Ng3 {[%clk
0:03:00.5]} 5... Bg6 {[%clk 0:03:01.4]} 6. h4 {[%clk 0:03:01.1]} 6... h6 {[%clk
0:03:01.4]} 7. Nf3 {[%clk 0:03:01.6]} 7... Nd7 {[%clk 0:03:00.8]} 8. Bc4 {[%clk
0:03:01.5]} 8... e6 {[%clk 0:02:57.9]} 9. h5 {[%clk 0:03:01.5]} 9... Bh7 {[%clk
0:02:57.6]} 10. c3 {[%clk 0:03:01.1]} 10... Bd6 {[%clk 0:02:51.3]} 11. Qe2
{[%clk 0:03:00.9]} 11... Ne7 {[%clk 0:02:45]} 12. Ne4 {[%clk 0:02:59.6]} 12...
Bxe4 {[%clk 0:02:37.7]} 13. Qxe4 {[%clk 0:02:59.2]} 13... Nf6 {[%clk 0:02:37.8]}
14. Qe2 {[%clk 0:02:58.9]} 14... Qc7 {[%clk 0:02:34.8]} 15. Ne5 {[%clk
0:02:58.8]} 15... Bxe5 {[%clk 0:02:26.8]} 16. dxe5 {[%clk 0:02:55.5]} 16... Nfd5
{[%clk 0:02:26.6]} 17. Bd2 {[%clk 0:02:52.3]} 17... O-O-O {[%clk 0:02:24.4]} 18.
O-O-O {[%clk 0:02:51.7]} 18... Rd7 {[%clk 0:02:14.8]} 19. f4 {[%clk 0:02:49.5]}
19... Rhd8 {[%clk 0:02:12.1]} 20. g4 {[%clk 0:02:48.6]} 20... Qa5 {[%clk
0:02:05.3]} 21. Bb3 {[%clk 0:02:47.1]} 21... Nb6 {[%clk 0:01:54.1]} 22. Rhf1
{[%clk 0:02:30.3]} 22... Qb5 {[%clk 0:01:53.5]} 23. Qxb5 {[%clk 0:02:29.1]}
23... cxb5 {[%clk 0:01:53.2]} 24. f5 {[%clk 0:02:30]} 24... Nc4 {[%clk
0:01:48.9]} 25. Bxc4 {[%clk 0:02:24.9]} 25... bxc4 {[%clk 0:01:48.3]} 26. f6
{[%clk 0:02:25.4]} 26... gxf6 {[%clk 0:01:45.1]} 27. exf6 {[%clk 0:02:23.9]}
27... Ng8 {[%clk 0:01:39.8]} 28. g5 {[%clk 0:02:24.2]} 28... Rd5 {[%clk
0:00:59.2]} 29. g6 {[%clk 0:02:18.6]} 29... R8d7 {[%clk 0:00:51]} 30. Be3 {[%clk
0:02:04.4]} 30... Rxd1+ {[%clk 0:00:40.7]} 31. Rxd1 {[%clk 0:02:05.3]} 31...
Rxd1+ {[%clk 0:00:40.8]} 32. Kxd1 {[%clk 0:02:05.5]} 32... Nxf6 {[%clk
0:00:38.1]} 33. gxf7 {[%clk 0:02:05.7]} 33... Nh7 {[%clk 0:00:36.3]} 34. Bxh6
{[%clk 0:02:05.9]} 34... Kd7 {[%clk 0:00:35.8]} 35. f8=Q {[%clk 0:02:06.8]}
35... Nxf8 {[%clk 0:00:35.9]} 36. Bxf8 {[%clk 0:02:07.7]} 1-0

[Event "Late-Titled-Tuesday-Blitz-November-28-2023"]
[Site "Chess.com"]
[Date "2023.11.28"]
[Round "6"]
[White "Siemba"]
[Black "sakkikuska"]
[Result "1-0"]
[WhiteElo "2606"]
[BlackElo "2397"]
[TimeControl "180+1"]
[EndTime "15:02:20 PST"]
[Termination "Siemba won by resignation"]

1. e4 {[%clk 0:03:00.9]} 1... c5 {[%clk 0:02:59.8]} 2. Nf3 {[%clk 0:02:55.9]}
2... e6 {[%clk 0:03:00.4]} 3. d4 {[%clk 0:02:55.8]} 3... cxd4 {[%clk 0:03:01.3]}
4. Nxd4 {[%clk 0:02:56.6]} 4... Nc6 {[%clk 0:03:01.9]} 5. Nc3 {[%clk 0:02:57.2]}
5... Qc7 {[%clk 0:03:01.7]} 6. Be3 {[%clk 0:02:47.3]} 6... a6 {[%clk 0:03:02.1]}
7. Qd2 {[%clk 0:02:46.6]} 7... Nf6 {[%clk 0:03:01]} 8. f3 {[%clk 0:02:46.7]}
8... h5 {[%clk 0:02:59.5]} 9. O-O-O {[%clk 0:02:46.8]} 9... Be7 {[%clk
0:02:59.7]} 10. Kb1 {[%clk 0:02:45.1]} 10... b5 {[%clk 0:02:59.1]} 11. Bf4
{[%clk 0:02:40.2]} 11... e5 {[%clk 0:02:57]} 12. Nf5 {[%clk 0:02:40.6]} 12...
exf4 {[%clk 0:02:53.9]} 13. Nd5 {[%clk 0:02:40.7]} 13... Qe5 {[%clk 0:02:33.6]}
14. Nxg7+ {[%clk 0:02:30.9]} 14... Kf8 {[%clk 0:02:31.7]} 15. Nf5 {[%clk
0:02:29.7]} 15... Nxd5 {[%clk 0:02:29]} 16. exd5 {[%clk 0:02:27.3]} 16... Qxf5
{[%clk 0:02:27.4]} 17. dxc6 {[%clk 0:02:27.8]} 17... dxc6 {[%clk 0:02:27.2]} 18.
Bd3 {[%clk 0:02:28.4]} 18... Qf6 {[%clk 0:02:26.5]} 19. Be4 {[%clk 0:02:27.1]}
19... Be6 {[%clk 0:02:23.5]} 20. Bxc6 {[%clk 0:02:25.9]} 20... Bxa2+ {[%clk
0:02:23.7]} 21. Kxa2 {[%clk 0:02:25.9]} 21... Qxc6 {[%clk 0:02:24.6]} 22. Qxf4
{[%clk 0:02:24.6]} 22... Qc4+ {[%clk 0:02:22.6]} 23. Qxc4 {[%clk 0:02:25]} 23...
bxc4 {[%clk 0:02:23.5]} 24. Rd4 {[%clk 0:02:24.5]} 24... Rg8 {[%clk 0:02:23.4]}
25. g3 {[%clk 0:02:24.4]} 25... Rc8 {[%clk 0:02:22.1]} 26. Re1 {[%clk
0:02:18.5]} 26... Rg5 {[%clk 0:02:19.9]} 27. c3 {[%clk 0:02:17.1]} 27... Ra5+
{[%clk 0:02:18.5]} 28. Kb1 {[%clk 0:02:17.6]} 28... Rb5 {[%clk 0:02:16.3]} 29.
Re2 {[%clk 0:02:15.2]} 29... Bf6 {[%clk 0:02:13.9]} 30. Rd7 {[%clk 0:02:07.8]}
30... Rcb8 {[%clk 0:02:07.2]} 31. Kc1 {[%clk 0:02:04.6]} 31... a5 {[%clk
0:02:02.8]} 32. Rd6 {[%clk 0:02:00.9]} 32... Be5 {[%clk 0:01:53.5]} 33. Rc6
{[%clk 0:01:59.5]} 33... Bf6 {[%clk 0:00:53.1]} 34. Rxf6 {[%clk 0:01:56.2]}
34... a4 {[%clk 0:00:50.2]} 35. Ra6 {[%clk 0:01:54.7]} 1-0

[Event "Late-Titled-Tuesday-Blitz-November-28-2023"]
[Site "Chess.com"]
[Date "2023.11.28"]
[Round "6"]
[White "drdaro"]
[Black "Abduzhaparov"]
[Result "0-1"]
[WhiteElo "2260"]
[BlackElo "2427"]
[TimeControl "180+1"]
[EndTime "15:02:33 PST"]
[Termination "Abduzhaparov won by resignation"]

1. d4 {[%clk 0:02:58.3]} 1... d6 {[%clk 0:03:00.9]} 2. g3 {[%clk 0:02:58]} 2...
e5 {[%clk 0:03:00.3]} 3. Bg2 {[%clk 0:02:55]} 3... exd4 {[%clk 0:02:59.7]} 4.
Qxd4 {[%clk 0:02:42.1]} 4... Nc6 {[%clk 0:02:59.2]} 5. Qd1 {[%clk 0:02:40.4]}
5... h5 {[%clk 0:02:58.6]} 6. h4 {[%clk 0:02:39.8]} 6... Bg4 {[%clk 0:02:57.5]}
7. Nf3 {[%clk 0:02:38.4]} 7... Be7 {[%clk 0:02:55]} 8. O-O {[%clk 0:02:38.5]}
8... Nh6 {[%clk 0:02:52.8]} 9. Bd2 {[%clk 0:02:34.6]} 9... Qd7 {[%clk
0:02:52.1]} 10. c4 {[%clk 0:02:32.6]} 10... O-O-O {[%clk 0:02:51.2]} 11. Bc3
{[%clk 0:02:33]} 11... Nf5 {[%clk 0:02:50.7]} 12. e4 {[%clk 0:02:31.7]} 12...
Nh6 {[%clk 0:02:31.3]} 13. Bxg7 {[%clk 0:02:28.4]} 13... Rh7 {[%clk 0:02:31.6]}
14. Bc3 {[%clk 0:02:23.5]} 14... Rg8 {[%clk 0:02:27.6]} 15. Nbd2 {[%clk
0:02:20]} 15... f5 {[%clk 0:02:20.2]} 16. Kh2 {[%clk 0:02:07.3]} 16... f4 {[%clk
0:02:18.1]} 17. Rg1 {[%clk 0:01:59.4]} 17... fxg3+ {[%clk 0:02:17.1]} 18. fxg3
{[%clk 0:02:00.3]} 18... Nf7 {[%clk 0:02:12.5]} 19. Qe1 {[%clk 0:01:46.6]} 19...
Bxf3 {[%clk 0:02:04.8]} 20. Nxf3 {[%clk 0:01:42.4]} 20... Nh6 {[%clk 0:02:04.5]}
21. Bh3 {[%clk 0:01:41.6]} 21... Ng4+ {[%clk 0:02:03.4]} 22. Bxg4 {[%clk
0:01:33.4]} 22... Qxg4 {[%clk 0:01:58.8]} 23. Nd4 {[%clk 0:01:30.1]} 23... Ne5
{[%clk 0:01:49]} 24. Qd1 {[%clk 0:01:05.9]} 24... c5 {[%clk 0:01:45.5]} 25. Nf5
{[%clk 0:00:47.8]} 25... Nf3+ {[%clk 0:01:43]} 26. Kg2 {[%clk 0:00:48.2]} 26...
Nxh4+ {[%clk 0:01:25.2]} 27. Nxh4 {[%clk 0:00:43.9]} 27... Qxg3+ {[%clk
0:01:23.4]} 28. Kh1 {[%clk 0:00:43.1]} 0-1

[Event "Late-Titled-Tuesday-Blitz-November-28-2023"]
[Site "Chess.com"]
[Date "2023.11.28"]
[Round "6"]
[White "MNyuyu"]
[Black "Freeeeeeeeeeeeeeeeee"]
[Result "0-1"]
[WhiteElo "2470"]
[BlackElo "2130"]
[TimeControl "180+1"]
[EndTime "15:02:34 PST"]
[Termination "Freeeeeeeeeeeeeeeeee won on time"]

1. d4 {[%clk 0:03:00.9]} 1... d5 {[%clk 0:02:37.6]} 2. c4 {[%clk 0:02:59.8]}
2... e6 {[%clk 0:02:37.5]} 3. Nc3 {[%clk 0:02:58.9]} 3... c6 {[%clk 0:02:37]} 4.
Nf3 {[%clk 0:02:57]} 4... dxc4 {[%clk 0:02:36.7]} 5. a4 {[%clk 0:02:55.5]} 5...
Bb4 {[%clk 0:02:36.3]} 6. e4 {[%clk 0:02:49.1]} 6... b5 {[%clk 0:02:35.8]} 7.
Be2 {[%clk 0:02:49.7]} 7... Nf6 {[%clk 0:02:35.3]} 8. Qc2 {[%clk 0:02:48.5]}
8... Bb7 {[%clk 0:02:34.2]} 9. O-O {[%clk 0:02:49]} 9... a6 {[%clk 0:02:33]} 10.
Bg5 {[%clk 0:02:48.6]} 10... h6 {[%clk 0:02:31.5]} 11. Bh4 {[%clk 0:02:48.5]}
11... Be7 {[%clk 0:02:31.2]} 12. Rfd1 {[%clk 0:02:41]} 12... O-O {[%clk
0:02:27.6]} 13. Ne5 {[%clk 0:02:33.4]} 13... Nbd7 {[%clk 0:02:22.1]} 14. f4
{[%clk 0:02:31.5]} 14... Nxe5 {[%clk 0:02:15.2]} 15. fxe5 {[%clk 0:02:32.4]}
15... Nd7 {[%clk 0:02:14.7]} 16. Bf2 {[%clk 0:02:32]} 16... Qc7 {[%clk
0:02:05.1]} 17. b3 {[%clk 0:02:27.7]} 17... b4 {[%clk 0:01:58.7]} 18. Na2 {[%clk
0:02:16.2]} 18... c3 {[%clk 0:01:57.6]} 19. a5 {[%clk 0:02:12.8]} 19... c5
{[%clk 0:01:46]} 20. dxc5 {[%clk 0:01:58.8]} 20... Bxc5 {[%clk 0:01:45.9]} 0-1

[Event "Late-Titled-Tuesday-Blitz-November-28-2023"]
[Site "Chess.com"]
[Date "2023.11.28"]
[Round "6"]
[White "Dzidzik2203"]
[Black "TrenerChos"]
[Result "0-1"]
[WhiteElo "2408"]
[BlackElo "2604"]
[TimeControl "180+1"]
[EndTime "15:02:53 PST"]
[Termination "TrenerChos won by resignation"]

1. d4 {[%clk 0:03:00.9]} 1... e5 {[%clk 0:02:59]} 2. dxe5 {[%clk 0:02:59.8]}
2... Nc6 {[%clk 0:02:58]} 3. Nf3 {[%clk 0:02:58.6]} 3... Qe7 {[%clk 0:02:58]} 4.
Qd5 {[%clk 0:02:43.1]} 4... d6 {[%clk 0:02:52]} 5. exd6 {[%clk 0:02:40.4]} 5...
cxd6 {[%clk 0:02:52.7]} 6. Nc3 {[%clk 0:02:39.4]} 6... Nf6 {[%clk 0:02:51.6]} 7.
Qb3 {[%clk 0:02:33.8]} 7... Be6 {[%clk 0:02:51]} 8. Qa4 {[%clk 0:02:31.5]} 8...
d5 {[%clk 0:02:50.7]} 9. Bg5 {[%clk 0:02:30.2]} 9... Qb4 {[%clk 0:02:45.8]} 10.
Bxf6 {[%clk 0:02:20.9]} 10... gxf6 {[%clk 0:02:42.5]} 11. Qxb4 {[%clk
0:02:15.5]} 11... Bxb4 {[%clk 0:02:41.3]} 12. e3 {[%clk 0:02:15.9]} 12... Rc8
{[%clk 0:02:39.1]} 13. O-O-O {[%clk 0:02:10.3]} 13... Bxc3 {[%clk 0:02:38.7]}
14. bxc3 {[%clk 0:02:11.2]} 14... Ne5 {[%clk 0:02:37.9]} 15. Kb2 {[%clk
0:02:05.2]} 15... Ke7 {[%clk 0:02:36.2]} 16. Nd4 {[%clk 0:02:01.8]} 16... Rc7
{[%clk 0:02:34.6]} 17. f4 {[%clk 0:01:31.4]} 17... Ng4 {[%clk 0:02:31.6]} 18.
Re1 {[%clk 0:01:29.8]} 18... Nf2 {[%clk 0:02:30.8]} 19. Rg1 {[%clk 0:01:25.2]}
19... Rhc8 {[%clk 0:02:29.4]} 20. Be2 {[%clk 0:00:58.5]} 20... Rxc3 {[%clk
0:02:25.7]} 21. Bf3 {[%clk 0:00:58.9]} 21... Ne4 {[%clk 0:02:17]} 22. f5 {[%clk
0:00:47.3]} 22... Bd7 {[%clk 0:02:14.3]} 23. Bxe4 {[%clk 0:00:47.7]} 23... dxe4
{[%clk 0:02:14.7]} 24. Re2 {[%clk 0:00:48.6]} 24... R3c4 {[%clk 0:02:09.8]} 25.
Rd1 {[%clk 0:00:46.8]} 25... b5 {[%clk 0:02:08.1]} 26. g4 {[%clk 0:00:44.6]}
26... b4 {[%clk 0:02:07.1]} 27. h3 {[%clk 0:00:44.6]} 27... a5 {[%clk
0:02:05.5]} 28. Rf2 {[%clk 0:00:41.8]} 28... a4 {[%clk 0:02:04.8]} 29. Rf4
{[%clk 0:00:42.1]} 29... Bc6 {[%clk 0:02:02.4]} 30. a3 {[%clk 0:00:37.1]} 30...
bxa3+ {[%clk 0:01:57.1]} 31. Kxa3 {[%clk 0:00:34.3]} 31... Bd5 {[%clk
0:01:57.3]} 32. Rb1 {[%clk 0:00:27.5]} 32... Rc3+ {[%clk 0:01:52.3]} 33. Kxa4
{[%clk 0:00:27.2]} 33... Ra8+ {[%clk 0:01:51.4]} 34. Kb4 {[%clk 0:00:27.1]}
34... Rc4+ {[%clk 0:01:51.3]} 35. Kb5 {[%clk 0:00:21.9]} 35... Rb8+ {[%clk
0:01:49.9]} 36. Ka5 {[%clk 0:00:22.2]} 36... Rxb1 {[%clk 0:01:49.3]} 0-1

[Event "Late-Titled-Tuesday-Blitz-November-28-2023"]
[Site "Chess.com"]
[Date "2023.11.28"]
[Round "6"]
[White "MathiasWomacka"]
[Black "KorolDimitriy75"]
[Result "1/2-1/2"]
[WhiteElo "2519"]
[BlackElo "2300"]
[TimeControl "180+1"]
[EndTime "15:03:11 PST"]
[Termination "Game drawn by repetition"]

1. e4 {[%clk 0:03:00.9]} 1... c5 {[%clk 0:02:59.6]} 2. Nf3 {[%clk 0:03:00.9]}
2... d6 {[%clk 0:03:00.1]} 3. d4 {[%clk 0:03:01.2]} 3... cxd4 {[%clk 0:03:01]}
4. Nxd4 {[%clk 0:02:59.5]} 4... Nf6 {[%clk 0:03:01.2]} 5. Nc3 {[%clk 0:02:58.2]}
5... g6 {[%clk 0:03:01.5]} 6. Be3 {[%clk 0:02:56.8]} 6... Bg7 {[%clk 0:03:01.7]}
7. f3 {[%clk 0:02:56.1]} 7... O-O {[%clk 0:03:02.1]} 8. Qd2 {[%clk 0:02:56.3]}
8... Nc6 {[%clk 0:03:02.8]} 9. O-O-O {[%clk 0:02:54.9]} 9... d5 {[%clk 0:03:03]}
10. exd5 {[%clk 0:02:53.7]} 10... Nxd5 {[%clk 0:03:03.9]} 11. Nxc6 {[%clk
0:02:53.7]} 11... bxc6 {[%clk 0:03:04.8]} 12. Bd4 {[%clk 0:02:52.6]} 12... e5
{[%clk 0:03:04.8]} 13. Bc5 {[%clk 0:02:50.8]} 13... Be6 {[%clk 0:03:05]} 14. Ne4
{[%clk 0:02:50.1]} 14... Rb8 {[%clk 0:03:04.7]} 15. h4 {[%clk 0:02:47]} 15... f5
{[%clk 0:03:04.5]} 16. Ng5 {[%clk 0:02:43.8]} 16... e4 {[%clk 0:03:05.4]} 17.
Ba3 {[%clk 0:02:07.4]} 17... e3 {[%clk 0:01:13.8]} 18. Qe1 {[%clk 0:02:06.6]}
18... Qb6 {[%clk 0:00:51.3]} 19. b3 {[%clk 0:01:35.7]} 19... Nc3 {[%clk
0:00:14]} 20. Nxe6 {[%clk 0:01:26]} 20... Qa5 {[%clk 0:00:12.9]} 21. Bb2 {[%clk
0:01:15.4]} 21... Nxa2+ {[%clk 0:00:12.3]} 22. Kb1 {[%clk 0:01:15]} 22... Nc3+
{[%clk 0:00:12.4]} 23. Kc1 {[%clk 0:01:09.1]} 23... Na2+ {[%clk 0:00:11.4]} 24.
Kb1 {[%clk 0:01:09.4]} 24... Nc3+ {[%clk 0:00:11.4]} 25. Kc1 {[%clk 0:01:09.5]}
25... Na2+ {[%clk 0:00:11.4]} 1/2-1/2

[Event "Late-Titled-Tuesday-Blitz-November-28-2023"]
[Site "Chess.com"]
[Date "2023.11.28"]
[Round "6"]
[White "RodokininEV"]
[Black "tantaan"]
[Result "1-0"]
[WhiteElo "2591"]
[BlackElo "2373"]
[TimeControl "180+1"]
[EndTime "15:03:18 PST"]
[Termination "RodokininEV won by resignation"]

1. Nf3 {[%clk 0:03:00.9]} 1... Nf6 {[%clk 0:02:58.5]} 2. g3 {[%clk 0:03:01.8]}
2... b5 {[%clk 0:02:57]} 3. Bg2 {[%clk 0:03:02.7]} 3... Bb7 {[%clk 0:02:57.4]}
4. O-O {[%clk 0:03:01.2]} 4... e6 {[%clk 0:02:57.1]} 5. d4 {[%clk 0:03:01.1]}
5... c5 {[%clk 0:02:55.1]} 6. c3 {[%clk 0:02:59]} 6... Be7 {[%clk 0:02:53.8]} 7.
Bf4 {[%clk 0:02:58.2]} 7... O-O {[%clk 0:02:53]} 8. Nbd2 {[%clk 0:02:57.5]} 8...
d6 {[%clk 0:02:45.1]} 9. Re1 {[%clk 0:02:55.5]} 9... b4 {[%clk 0:02:35.7]} 10.
e4 {[%clk 0:02:48.9]} 10... bxc3 {[%clk 0:02:30.3]} 11. bxc3 {[%clk 0:02:48.6]}
11... Nc6 {[%clk 0:02:15.8]} 12. Qb3 {[%clk 0:02:43.4]} 12... Rb8 {[%clk
0:02:14.6]} 13. dxc5 {[%clk 0:02:40.8]} 13... dxc5 {[%clk 0:02:08.3]} 14. Bxb8
{[%clk 0:02:40.5]} 14... Qxb8 {[%clk 0:02:09.2]} 15. Rab1 {[%clk 0:02:40.3]}
15... Na5 {[%clk 0:02:05.8]} 16. Qa4 {[%clk 0:02:35.2]} 16... Qc7 {[%clk
0:02:05.3]} 17. Nc4 {[%clk 0:02:33.2]} 17... Nxc4 {[%clk 0:02:00.5]} 18. Qxc4
{[%clk 0:02:34.1]} 18... Bc6 {[%clk 0:01:57.3]} 19. Qa6 {[%clk 0:02:31.5]} 19...
Bxe4 {[%clk 0:01:56.6]} 20. Rxe4 {[%clk 0:02:27.7]} 20... Nxe4 {[%clk 0:01:55]}
21. Rb7 {[%clk 0:02:22.1]} 21... Qd8 {[%clk 0:01:54.8]} 22. Ne5 {[%clk
0:02:19.6]} 22... Qd1+ {[%clk 0:01:51]} 23. Bf1 {[%clk 0:02:16.1]} 23... Bf6
{[%clk 0:01:31]} 24. Nd7 {[%clk 0:02:14.1]} 24... Rd8 {[%clk 0:01:00.3]} 25.
Nxf6+ {[%clk 0:02:08.9]} 25... gxf6 {[%clk 0:01:01.2]} 26. Qe2 {[%clk
0:02:08.8]} 26... Qxe2 {[%clk 0:01:00.1]} 27. Bxe2 {[%clk 0:02:09.7]} 27... Nxc3
{[%clk 0:01:00.7]} 28. Bh5 {[%clk 0:02:02.7]} 28... Rf8 {[%clk 0:00:41.2]} 29.
Rxa7 {[%clk 0:02:01.4]} 29... Nd5 {[%clk 0:00:41.6]} 30. Kf1 {[%clk 0:01:55.9]}
30... f5 {[%clk 0:00:37.9]} 31. Ke2 {[%clk 0:01:55.8]} 31... Nf6 {[%clk
0:00:38.1]} 32. Bf3 {[%clk 0:01:54.1]} 32... Rc8 {[%clk 0:00:38.5]} 33. a4
{[%clk 0:01:51.9]} 33... Kf8 {[%clk 0:00:38.4]} 34. a5 {[%clk 0:01:52]} 34... e5
{[%clk 0:00:38.6]} 35. Ra8 {[%clk 0:01:49.8]} 35... Rxa8 {[%clk 0:00:33.7]} 36.
Bxa8 {[%clk 0:01:50.7]} 36... Nd7 {[%clk 0:00:32.7]} 37. a6 {[%clk 0:01:49.3]}
37... Nb6 {[%clk 0:00:32.8]} 38. Bb7 {[%clk 0:01:47.2]} 38... Ke7 {[%clk
0:00:27.5]} 39. a7 {[%clk 0:01:47.2]} 39... Kd6 {[%clk 0:00:27.7]} 40. a8=Q
{[%clk 0:01:47.2]} 40... Nxa8 {[%clk 0:00:28.2]} 41. Bxa8 {[%clk 0:01:48.1]}
41... c4 {[%clk 0:00:28.9]} 42. Kd2 {[%clk 0:01:46.7]} 42... Kc5 {[%clk
0:00:29.1]} 43. Kc3 {[%clk 0:01:46.6]} 43... f6 {[%clk 0:00:28.6]} 44. Bf3
{[%clk 0:01:44.2]} 44... f4 {[%clk 0:00:23.3]} 45. Be4 {[%clk 0:01:41.8]} 1-0